[Event "Chessity Nationale Pupillendag 2019 - Groep H"]
[Site "Meppel, Netherlands"]
[Date "2019.06.29"]
[Round "6.1"]
[White "Rudolph, Simon"]
[Black "Ritzerveld, Noah"]
[Result "0-1"]
[TimeControl "15 min + 10 sec"]
[WhiteElo "439"]
[BlackElo "615"]

1. c4 {[%clk 00:15:16]} {[%emt 00:00:03]} e5 {[%clk 00:15:18]} {[%emt
00:00:03]} 2. Nc3 {[%clk 00:15:24]} {[%emt 00:00:02]} Nf6 {[%clk 00:15:23]}
{[%emt 00:00:05]} 3. Nf3 {[%clk 00:15:26]} {[%emt 00:00:08]} Nc6 {[%clk
00:15:31]} {[%emt 00:00:02]} 4. g3 {[%clk 00:15:33]} {[%emt 00:00:03]} Bb4
{[%clk 00:15:28]} {[%emt 00:00:13]} 5. Bg2 {[%clk 00:15:40]} {[%emt 00:00:02]}
O-O {[%clk 00:15:25]} {[%emt 00:00:14]} 6. O-O {[%clk 00:15:46]} {[%emt
00:00:04]} Re8 {[%clk 00:15:23]} {[%emt 00:00:11]} 7. a3 {[%clk 00:15:49]}
{[%emt 00:00:08]} Ba5 {[%clk 00:15:29]} {[%emt 00:00:04]} 8. b4 {[%emt
00:00:09]} Bb6 {[%clk 00:15:11]} {[%emt 00:00:22]} 9. c5 {[%clk 00:16:02]}
{[%emt 00:00:04]} e4 {[%clk 00:15:15]} {[%emt 00:00:06]} 10. cxb6 {[%clk
00:16:06]} {[%emt 00:00:06]} exf3 {[%clk 00:15:23]} {[%emt 00:00:02]} 11. bxc7
{[%clk 00:16:12]} Qxc7 {[%clk 00:15:21]} {[%emt 00:00:15]} 12. exf3 {[%clk
00:16:18]} {[%emt 00:00:04]} d6 {[%clk 00:15:18]} {[%emt 00:00:14]} 13. Nb5
{[%clk 00:16:20]} {[%emt 00:00:07]} Qb6 {[%clk 00:15:16]} {[%emt 00:00:04]} 14.
Nc3 {[%clk 00:16:27]} {[%emt 00:00:12]} Qd4 {[%clk 00:15:09]} {[%emt 00:00:16]}
15. Bb2 {[%clk 00:16:31]} {[%emt 00:00:06]} Re7 {[%clk 00:14:48]} {[%emt
00:00:30]} 16. Rb1 {[%emt 00:01:29]} Qd3 {[%clk 00:13:32]} {[%emt 00:00:01]} 17.
Ne4 {[%clk 00:16:30]} {[%emt 00:00:17]} Nxe4 {[%clk 00:13:25]} {[%emt
00:00:18]} 18. fxe4 {[%clk 00:16:32]} {[%emt 00:00:07]} Qb5 {[%clk 00:12:57]}
{[%emt 00:00:33]} 19. Qc2 {[%clk 00:16:35]} {[%emt 00:00:12]} Qh5 {[%clk
00:09:44]} {[%emt 00:03:36]} 20. Qc3 {[%clk 00:16:37]} {[%emt 00:00:05]} f5
{[%clk 00:09:02]} {[%emt 00:00:56]} 21. exf5 {[%clk 00:16:39]} {[%emt
00:00:08]} Bxf5 {[%clk 00:09:09]} {[%emt 00:00:03]} 22. Rfe1 {[%clk 00:16:41]}
{[%emt 00:00:07]} Rf7 {[%clk 00:08:54]} {[%emt 00:00:14]} 23. Bd5 {[%clk
00:16:44]} {[%emt 00:00:19]} Bh3 {[%clk 00:08:09]} {[%emt 00:00:50]} 24. Bxf7+
{[%clk 00:16:50]} {[%emt 00:00:09]} Qxf7 {[%clk 00:08:18]} {[%emt 00:00:02]} 25.
Re4 {[%clk 00:16:31]} {[%emt 00:00:29]} Ne5 {[%clk 00:08:03]} {[%emt 00:00:24]}
26. f4 {[%clk 00:16:26]} {[%emt 00:00:14]} Rf8 {[%clk 00:07:15]} {[%emt
00:00:59]} 27. fxe5 {[%clk 00:16:29]} {[%emt 00:00:08]} Qf2+ {[%clk 00:07:21]}
{[%emt 00:00:02]} 28. Kh1 {[%clk 00:16:30]} {[%emt 00:00:10]} Qg2# {[%clk
00:07:29]} {[%emt 00:00:02]} 0-1

[Event "Chessity Nationale Pupillendag 2019 - Groep H"]
[Site "Meppel, Netherlands"]
[Date "2019.06.29"]
[Round "6.2"]
[White "Leenen, Boyd"]
[Black "Zoet, Wiebe"]
[Result "0-1"]
[TimeControl "15 min + 10 sec"]
[WhiteElo "495"]
[BlackElo "401"]

1. e4 {[%clk 00:15:19]} e5 {[%clk 00:15:19]} {[%emt 00:00:02]} 2. Nf3 {[%clk
00:15:28]} Nc6 {[%clk 00:15:27]} {[%emt 00:00:02]} 3. Bc4 {[%clk 00:15:37]}
{[%emt 00:00:02]} Bc5 {[%clk 00:15:23]} {[%emt 00:00:13]} 4. d3 {[%clk
00:15:45]} {[%emt 00:00:02]} Nh6 {[%clk 00:15:16]} {[%emt 00:00:18]} 5. Nc3
{[%clk 00:15:51]} {[%emt 00:00:03]} Ng4 {[%clk 00:15:23]} {[%emt 00:00:02]} 6.
O-O {[%clk 00:15:56]} {[%emt 00:00:05]} Bxf2+ {[%clk 00:15:29]} {[%emt
00:00:04]} 7. Rxf2 {[%clk 00:16:05]} {[%emt 00:00:02]} Nxf2 {[%clk 00:15:36]}
{[%emt 00:00:03]} 8. Kxf2 {[%emt 00:00:02]} Qe7 {[%emt 00:00:12]} 9. Nd5 {[%clk
00:15:58]} {[%emt 00:00:03]} Qc5+ {[%clk 00:15:40]} {[%emt 00:00:07]} 10. Be3
{[%clk 00:16:05]} {[%emt 00:00:03]} Qd6 {[%clk 00:15:37]} {[%emt 00:00:14]} 11.
Qe2 {[%clk 00:16:05]} {[%emt 00:00:10]} O-O {[%clk 00:15:42]} {[%emt 00:00:04]}
12. a3 {[%clk 00:16:04]} {[%emt 00:00:09]} Na5 {[%clk 00:15:33]} {[%emt
00:00:22]} 13. Bb3 {[%clk 00:16:02]} {[%emt 00:00:12]} Nxb3 {[%clk 00:15:40]}
{[%emt 00:00:03]} 14. cxb3 {[%emt 00:00:20]} b6 {[%clk 00:15:25]} {[%emt
00:00:07]} 15. b4 {[%clk 00:16:14]} {[%emt 00:00:06]} a5 {[%clk 00:15:20]}
{[%emt 00:00:16]} 16. bxa5 {[%emt 00:00:03]} bxa5 {[%emt 00:00:01]} 17. Qc2
{[%clk 00:16:24]} {[%emt 00:00:06]} Ra6 {[%clk 00:15:28]} {[%emt 00:00:12]} 18.
Nxc7 {[%clk 00:16:28]} {[%emt 00:00:06]} Rc6 {[%clk 00:15:31]} {[%emt
00:00:07]} 19. Nb5 {[%clk 00:16:33]} {[%emt 00:00:04]} Rxc2+ {[%clk 00:15:34]}
{[%emt 00:00:08]} 20. Bd2 {[%clk 00:16:40]} {[%emt 00:00:03]} Qb6+ {[%clk
00:15:38]} {[%emt 00:00:06]} 21. Ke2 {[%clk 00:16:46]} {[%emt 00:00:04]} Qxb5
{[%clk 00:15:42]} {[%emt 00:00:06]} 22. Ke3 {[%clk 00:16:51]} {[%emt 00:00:05]}
Qxb2 {[%clk 00:15:37]} {[%emt 00:00:15]} 23. Rd1 {[%clk 00:16:57]} {[%emt
00:00:04]} Qxa3 {[%clk 00:15:39]} {[%emt 00:00:07]} 24. Be1 {[%clk 00:16:58]}
{[%emt 00:00:09]} Qc5+ {[%clk 00:15:36]} {[%emt 00:00:14]} 25. d4 {[%clk
00:17:03]} {[%emt 00:00:05]} Qb5 {[%clk 00:15:34]} {[%emt 00:00:10]} 26. Nxe5
{[%clk 00:17:06]} {[%emt 00:00:09]} Qe2+ {[%clk 00:15:35]} {[%emt 00:00:09]} 27.
Kf4 {[%clk 00:17:15]} {[%emt 00:00:02]} Qxd1 {[%clk 00:15:37]} {[%emt
00:00:08]} 28. Bxa5 {[%clk 00:17:19]} {[%emt 00:00:06]} Ra2 {[%clk 00:15:35]}
{[%emt 00:00:11]} 29. Bc3 {[%clk 00:17:25]} {[%emt 00:00:04]} Qc2 {[%clk
00:15:38]} {[%emt 00:00:08]} 30. Bb4 {[%clk 00:17:34]} {[%emt 00:00:02]} Qf2+
{[%clk 00:15:44]} {[%emt 00:00:03]} 31. Kg4 {[%clk 00:17:41]} {[%emt 00:00:04]}
Qxg2+ {[%clk 00:15:47]} {[%emt 00:00:07]} 32. Kf4 {[%clk 00:17:50]} {[%emt
00:00:02]} Qxh2+ {[%clk 00:15:54]} {[%emt 00:00:02]} 33. Kg4 {[%clk 00:17:59]}
Qg2+ {[%clk 00:15:54]} {[%emt 00:00:11]} 34. Kf4 {[%clk 00:18:07]} {[%emt
00:00:03]} Re2 {[%clk 00:15:53]} {[%emt 00:00:11]} 35. Bxf8 {[%emt 00:00:11]}
Qxe4+ {[%clk 00:15:56]} {[%emt 00:00:05]} 36. Kg3 {[%clk 00:18:17]} {[%emt
00:00:01]} Qxd4 {[%clk 00:16:00]} {[%emt 00:00:06]} 37. Nf3 {[%clk 00:18:21]}
{[%emt 00:00:05]} Qe3 {[%clk 00:15:59]} {[%emt 00:00:11]} 38. Bb4 {[%clk
00:18:25]} {[%emt 00:00:05]} Qxf3+ {[%clk 00:16:06]} {[%emt 00:00:06]} 39. Kxf3
{[%clk 00:18:33]} {[%emt 00:00:02]} Rb2 {[%clk 00:16:12]} {[%emt 00:00:04]} 40.
Bc3 {[%clk 00:18:42]} {[%emt 00:00:02]} Rb3 {[%clk 00:16:20]} {[%emt 00:00:02]}
41. Ke4 {[%clk 00:18:51]} Rxc3 {[%emt 00:00:02]} 42. Kd4 Ra3 {[%clk 00:16:25]}
{[%emt 00:00:03]} 43. Kc4 {[%emt 00:00:03]} Ra8 {[%clk 00:16:33]} 44. Kd5
{[%clk 00:19:09]} {[%emt 00:00:02]} Bb7+ {[%clk 00:16:42]} {[%emt 00:00:01]} 45.
Kd6 {[%clk 00:19:18]} h5 {[%clk 00:16:45]} {[%emt 00:00:07]} 46. Ke5 {[%clk
00:19:27]} {[%emt 00:00:02]} h4 {[%clk 00:16:53]} {[%emt 00:00:01]} 47. Kf4
{[%clk 00:19:36]} f6 {[%clk 00:17:01]} {[%emt 00:00:03]} 48. Kg4 {[%clk
00:19:45]} {[%emt 00:00:01]} g5 {[%clk 00:17:10]} {[%emt 00:00:01]} 49. Kh3
{[%clk 00:19:54]} {[%emt 00:00:01]} f5 {[%clk 00:17:18]} {[%emt 00:00:03]} 50.
Kh2 {[%clk 00:20:01]} {[%emt 00:00:02]} g4 {[%clk 00:17:27]} {[%emt 00:00:01]}
51. Kg1 {[%clk 00:20:10]} {[%emt 00:00:01]} f4 {[%clk 00:17:36]} 52. Kf2 {[%clk
00:20:20]} {[%emt 00:00:01]} g3+ {[%clk 00:17:44]} {[%emt 00:00:02]} 53. Kf1
{[%clk 00:20:29]} {[%emt 00:00:01]} h3 {[%clk 00:17:52]} {[%emt 00:00:01]} 54.
Kg1 {[%clk 00:20:38]} {[%emt 00:00:01]} f3 {[%clk 00:18:01]} {[%emt 00:00:01]}
55. Kf1 {[%clk 00:20:47]} g2+ {[%clk 00:18:10]} {[%emt 00:00:02]} 56. Kg1
{[%clk 00:20:56]} {[%emt 00:00:01]} Ra1+ {[%clk 00:18:15]} {[%emt 00:00:04]} 57.
Kh2 {[%clk 00:21:05]} {[%emt 00:00:01]} g1=Q+ {[%clk 00:18:19]} {[%emt
00:00:05]} 58. Kxh3 {[%clk 00:21:14]} {[%emt 00:00:03]} Qh1+ {[%clk 00:18:25]}
{[%emt 00:00:03]} 59. Kg3 {[%clk 00:21:23]} {[%emt 00:00:02]} Ra3 {[%clk
00:18:33]} {[%emt 00:00:02]} 60. Kg4 {[%clk 00:21:32]} {[%emt 00:00:01]} f2
{[%clk 00:18:42]} {[%emt 00:00:01]} 61. Kf5 {[%clk 00:21:39]} {[%emt 00:00:02]}
Qh5+ {[%clk 00:18:47]} {[%emt 00:00:05]} 62. Ke4 {[%clk 00:21:47]} {[%emt
00:00:03]} Ra4+ {[%clk 00:18:56]} {[%emt 00:00:02]} 63. Kd3 {[%clk 00:21:56]}
Qh3+ {[%clk 00:19:04]} {[%emt 00:00:02]} 64. Ke2 {[%clk 00:22:04]} {[%emt
00:00:02]} Ra2+ {[%clk 00:19:11]} {[%emt 00:00:02]} 65. Kd1 {[%clk 00:22:10]}
{[%emt 00:00:04]} Qh1# 0-1

[Event "Chessity Nationale Pupillendag 2019 - Groep H"]
[Site "Meppel, Netherlands"]
[Date "2019.06.29"]
[Round "7.1"]
[White "Ritzerveld, Noah"]
[Black "Agarwal, Advik"]
[Result "1-0"]
[TimeControl "15 min + 10 sec"]
[WhiteElo "615"]
[BlackElo "233"]

1. e4 {[%clk 00:15:19]} {[%emt 00:15:05]} e5 {[%clk 00:15:19]} {[%emt
00:00:02]} 2. Nf3 {[%clk 00:15:28]} {[%emt 00:00:01]} Nc6 {[%clk 00:15:26]}
{[%emt 00:00:03]} 3. Nc3 {[%clk 00:15:36]} {[%emt 00:00:02]} Nf6 {[%clk
00:15:31]} {[%emt 00:00:05]} 4. Bb5 {[%clk 00:15:44]} {[%emt 00:00:03]} Bb4
{[%clk 00:15:34]} {[%emt 00:00:06]} 5. O-O {[%clk 00:15:50]} {[%emt 00:00:04]}
O-O {[%clk 00:15:36]} {[%emt 00:00:08]} 6. a3 {[%clk 00:15:53]} {[%emt
00:00:06]} Bxc3 {[%clk 00:15:44]} {[%emt 00:00:02]} 7. dxc3 {[%clk 00:15:59]}
{[%emt 00:00:05]} Nxe4 {[%clk 00:15:48]} {[%emt 00:00:05]} 8. Re1 {[%clk
00:15:55]} {[%emt 00:00:11]} Nd6 {[%clk 00:15:44]} {[%emt 00:00:16]} 9. Bxc6
{[%clk 00:15:56]} {[%emt 00:00:11]} dxc6 {[%clk 00:15:48]} {[%emt 00:00:06]} 10.
Rxe5 {[%clk 00:15:59]} {[%emt 00:00:06]} Nc4 {[%clk 00:15:41]} {[%emt
00:00:15]} 11. Qe2 {[%clk 00:15:54]} {[%emt 00:00:17]} Nxe5 {[%clk 00:15:46]}
{[%emt 00:00:06]} 12. Nxe5 {[%clk 00:15:57]} {[%emt 00:00:07]} Qe7 {[%clk
00:15:30]} {[%emt 00:00:24]} 13. Bf4 {[%clk 00:15:39]} {[%emt 00:00:23]} Qf6
{[%clk 00:15:27]} {[%emt 00:00:19]} 14. Qe4 {[%clk 00:15:09]} {[%emt 00:00:40]}
Bf5 {[%clk 00:15:33]} {[%emt 00:00:03]} 15. Qf3 {[%clk 00:14:58]} {[%emt
00:00:20]} Bxc2 {[%clk 00:15:23]} {[%emt 00:00:21]} 16. Nd7 {[%clk 00:15:05]}
{[%emt 00:00:05]} Qe6 {[%clk 00:15:09]} {[%emt 00:00:20]} 17. Nxf8 {[%clk
00:15:07]} {[%emt 00:00:11]} Kxf8 {[%clk 00:15:15]} {[%emt 00:00:03]} 18. Bxc7
{[%clk 00:15:04]} {[%emt 00:00:14]} Qb3 {[%clk 00:15:22]} {[%emt 00:00:03]} 19.
Bd6+ {[%clk 00:14:57]} {[%emt 00:00:17]} Kg8 {[%clk 00:15:28]} {[%emt
00:00:04]} 20. Re1 {[%clk 00:14:30]} {[%emt 00:00:36]} Qxb2 {[%clk 00:15:24]}
{[%emt 00:00:13]} 21. Qe3 {[%clk 00:14:33]} {[%emt 00:00:06]} Kh8 {[%clk
00:15:21]} {[%emt 00:00:27]} 22. Qe8+ {[%clk 00:14:49]} {[%emt 00:00:03]} Rxe8
{[%clk 00:15:29]} {[%emt 00:00:03]} 23. Rxe8# {[%clk 00:14:58]} {[%emt
00:00:02]} 1-0

[Event "Chessity Nationale Pupillendag 2019 - Groep H"]
[Site "Meppel, Netherlands"]
[Date "2019.06.29"]
[Round "7.2"]
[White "Zoet, Wiebe"]
[Black "Ho, Alex"]
[Result "1-0"]
[TimeControl "15 min + 10 sec"]
[WhiteElo "401"]
[BlackElo "348"]

1. e4 {[%clk 00:15:18]} {[%emt 00:00:02]} e5 {[%clk 00:15:28]} {[%emt
00:00:01]} 2. Nf3 {[%clk 00:15:27]} {[%emt 00:00:02]} Nc6 {[%clk 00:15:36]}
{[%emt 00:00:02]} 3. d4 {[%clk 00:15:35]} {[%emt 00:00:01]} f6 {[%clk
00:15:39]} {[%emt 00:00:07]} 4. d5 {[%clk 00:15:37]} {[%emt 00:00:08]} Nce7
{[%clk 00:15:45]} {[%emt 00:00:04]} 5. Be2 {[%clk 00:15:38]} {[%emt 00:00:09]}
c6 {[%clk 00:15:52]} {[%emt 00:00:01]} 6. d6 {[%clk 00:15:46]} {[%emt
00:00:04]} Ng6 {[%emt 00:00:10]} 7. O-O {[%emt 00:00:04]} b5 {[%clk 00:15:38]}
{[%emt 00:00:09]} 8. Nc3 {[%clk 00:15:44]} {[%emt 00:00:13]} b4 {[%emt
00:00:03]} 9. Nb1 {[%emt 00:00:05]} Rb8 {[%clk 00:15:24]} {[%emt 00:00:15]} 10.
c3 {[%clk 00:15:40]} {[%emt 00:00:15]} bxc3 {[%clk 00:15:28]} {[%emt 00:00:02]}
11. bxc3 {[%clk 00:15:45]} {[%emt 00:00:09]} Nh6 {[%clk 00:15:22]} {[%emt
00:00:15]} 12. Bxh6 {[%clk 00:15:39]} {[%emt 00:00:17]} gxh6 {[%clk 00:15:23]}
{[%emt 00:00:02]} 13. Nbd2 {[%clk 00:15:44]} {[%emt 00:00:11]} Nf4 {[%clk
00:15:25]} {[%emt 00:00:07]} 14. Bc4 {[%clk 00:15:17]} {[%emt 00:00:37]} Rg8
{[%clk 00:15:28]} {[%emt 00:00:05]} 15. Bxg8 {[%clk 00:15:17]} {[%emt
00:00:13]} Ne6 {[%clk 00:15:12]} {[%emt 00:00:25]} 16. Bxh7 {[%clk 00:15:23]}
{[%emt 00:00:05]} Ng5 {[%emt 00:00:06]} 17. Bg6+ {[%emt 00:00:03]} Nf7 {[%clk
00:15:06]} {[%emt 00:00:06]} 1-0